fUST/lending_fUST_20250622
["ID","MTS","AMOUNT","RATE_DAILY","PERIOD"]
[366931135,1750587040090,-614.60907234,0.00021285,2]
[366931136,1750587040099,-214.83232577,0.00021475,2]
[366931137,1750587040108,-643.44135993,0.00021499,2]
[366931138,1750587040119,-356.55864007,0.00021499,2]
[366931139,1750587040129,-160.0,0.0002169,2]
[366931140,1750587040138,-214.83232577,0.00021717,2]
[366931141,1750587040147,-337.6498,0.00021762,2]
[366931147,1750587043276,-104.0739139,0.00021762,2]
[366931148,1750587043286,-405.93715372,0.00021817,2]
[366931149,1750587043295,-500.0,0.00021849,8]
[366931150,1750587043305,-160.0,0.00021861,2]
[366931151,1750587043314,-300.0,0.00021862,2]
[366931152,1750587043323,-656.6262587,0.000219,6]
[366931177,1750587049700,-5000.0,0.00020641,2]
[366931178,1750587049709,-5275.38967877,0.00021862,2]
[366931179,1750587049719,-1022.1835997,0.000219,6]
[366931180,1750587049728,-1324.16,0.00021907,3]
[366931181,1750587049737,-815.5,0.00021907,3]
[366931182,1750587049747,-407.75,0.00021907,3]
[366931183,1750587049757,-203.88,0.00021907,3]
[366931184,1750587049767,-611.65,0.00021907,3]
[366931185,1750587049776,-339.39520535,0.00021907,10]
[366931186,1750587049792,-41.20479465,0.00021907,10]
[366931187,1750587049801,-530.2790458,0.00021907,3]
[366931188,1750587049922,-0.01567882,0.00021907,3]
[366931189,1750587049933,-228.46527538,0.00021907,3]
[366931190,1750587049942,-500.0,0.00021916,2]
[366931191,1750587049951,-500.0,0.00021916,2]
[366931192,1750587049961,-500.0,0.00021916,2]
[366931193,1750587049970,-548.72702455,0.00021916,2]
[366931194,1750587049979,-439.51209671,0.00021916,2]
[366931195,1750587049988,-500.0,0.00021916,2]
[366931196,1750587049997,-500.0,0.00021916,2]
[366931197,1750587050007,-500.0,0.00021916,2]
[366931198,1750587050016,-500.0,0.00021916,2]
[366931199,1750587050025,-500.0,0.00021916,2]
[366931200,1750587050034,-200.87094167,0.00021916,2]
[366931201,1750587050043,-500.0,0.00021916,2]
[366931202,1750587050052,-500.0,0.00021916,2]
[366931203,1750587050061,-500.0,0.00021916,2]
[366931204,1750587050069,-500.0,0.00021916,2]
[366931205,1750587050079,-500.0,0.00021916,2]
[366931206,1750587050087,-500.0,0.00021916,2]
[366931207,1750587050097,-500.0,0.00021916,2]
[366931208,1750587050105,-500.0,0.00021916,2]
[366931209,1750587050115,-500.0,0.00021916,2]
[366931210,1750587050124,-500.0,0.00021916,2]
[366931211,1750587050134,-500.0,0.00021916,2]
[366931212,1750587050143,-500.0,0.00021916,2]
[366931213,1750587050152,-36.77079797,0.00021916,2]
[366931214,1750587050166,-463.22920203,0.00021916,2]
[366931215,1750587050256,-550.0,0.00021916,2]
[366931216,1750587050266,-1000.0,0.00021916,2]
[366931217,1750587050275,-1000.0,0.00021916,2]
[366931218,1750587050285,-1000.0,0.00021916,2]
[366931219,1750587050294,-1000.0,0.00021916,2]
[366931220,1750587050303,-1000.0,0.00021916,2]
[366931221,1750587050313,-1000.0,0.00021916,2]
[366931222,1750587050323,-1000.0,0.00021916,2]
[366931223,1750587050333,-1000.0,0.00021916,2]
[366931224,1750587050342,-1000.0,0.00021916,2]
[366931225,1750587050352,-1000.0,0.00021916,2]
[366931226,1750587050361,-1000.0,0.00021916,2]
[366931227,1750587050372,-1000.0,0.00021916,2]
[366931228,1750587050381,-1000.0,0.00021916,2]
[366931229,1750587050391,-1000.0,0.00021916,2]
[366931230,1750587050400,-196.22445468,0.00021916,2]
[366931231,1750587050409,-172.11094416,0.00021917,3]
[366931232,1750587050422,-257.39765723,0.00021917,3]
[366931233,1750587050431,-404.20640939,0.00021917,3]
[366931234,1750587050441,-228.7661709,0.00021917,3]
[366931235,1750587050450,-460.0,0.00021917,3]
[366931236,1750587050459,-402.82503396,0.00021917,3]
[366931237,1750587050469,-441.22791932,0.00021917,3]
[366931238,1750587050478,-461.76540482,0.00021917,3]
[366931239,1750587050488,-353.36371504,0.00021917,3]
[366931240,1750587050498,-400.0,0.00021917,3]
[366931241,1750587050507,-460.0,0.00021917,3]
[366931242,1750587050517,-460.0,0.00021917,3]
[366931243,1750587050526,-266.13695828,0.00021917,3]
[366931244,1750587050536,-500.0,0.00021917,3]
[366931245,1750587050545,-500.0,0.00021917,3]
[366931246,1750587050555,-500.0,0.00021917,3]
[366931247,1750587050564,-430.0,0.00021917,3]
[366931248,1750587050574,-430.0,0.00021917,3]
[366931249,1750587050583,-441.53770433,0.00021917,3]
[366931250,1750587050598,-460.0,0.00021917,3]
[366931251,1750587050608,-502.36945495,0.00021917,3]
[366931252,1750587050618,-434.55028949,0.00021917,3]
[366931253,1750587050627,-430.0,0.00021917,3]
[366931254,1750587050638,-460.0,0.00021917,3]
[366931255,1750587050648,-434.31898164,0.00021917,3]
[366931256,1750587050658,-430.0,0.00021917,3]
[366931257,1750587050672,-434.3900369,0.00021917,3]
[366931258,1750587050683,-570.0,0.00021917,3]
[366931259,1750587050693,-460.0,0.00021917,3]
[366931260,1750587050703,-434.67464137,0.00021917,3]
[366931261,1750587050713,-460.0,0.00021917,3]
[366931262,1750587050723,-461.44243484,0.00021917,3]
[366931263,1750587050735,-430.0,0.00021917,3]
[366931264,1750587050745,-73.23264433,0.00021917,3]
[366931265,1750587050759,-386.76735567,0.00021917,3]
[366931266,1750587050770,-340.0,0.00021917,3]
[366931267,1750587050779,-460.0,0.00021917,3]
[366931268,1750587050788,-433.73906047,0.00021917,3]
[366931269,1750587050798,-460.0,0.00021917,3]
[366931270,1750587050807,-461.73568027,0.00021917,3]
[366931271,1750587050818,-460.0,0.00021917,3]
[366931272,1750587050827,-10.41250401,0.00021917,3]
[366931273,1750587050946,-419.58749599,0.00021917,3]
[366931274,1750587050957,-460.0,0.00021917,3]
[366931275,1750587050967,-460.0,0.00021917,3]
[366931276,1750587050978,-586.51306352,0.00021917,3]
[366931277,1750587050987,-460.0,0.00021917,3]
[366931278,1750587050997,-460.0,0.00021917,3]
[366931279,1750587051006,-460.0,0.00021917,3]
[366931280,1750587051016,-408.84595878,0.00021917,3]
[366931281,1750587051026,-460.0,0.00021917,3]
[366931282,1750587051035,-460.0,0.00021917,3]
[366931283,1750587051045,-460.0,0.00021917,3]
[366931284,1750587051054,-470.06791648,0.00021917,3]
[366931285,1750587051064,-321.33140476,0.00021917,3]
[366931286,1750587051073,-431.37286911,0.00021917,3]
[366931287,1750587051083,-460.0,0.00021917,3]
[366931288,1750587051092,-435.75951801,0.00021917,3]
[366931289,1750587051165,-24.24048199,0.00021917,3]
[366931290,1750587051174,-351.09319549,0.00021917,3]
[366931291,1750587051184,-443.62887556,0.00021917,3]
[366931292,1750587051194,-239.22380734,0.00021917,3]
[366931293,1750587052983,-220.77619266,0.00021917,3]
[366931294,1750587052993,-460.0,0.00021917,3]
[366931295,1750587053004,-460.0,0.00021917,3]
[366931296,1750587053014,-460.0,0.00021917,3]
[366931297,1750587053024,-460.0,0.00021917,3]
[366931298,1750587053034,-460.0,0.00021917,3]
[366931299,1750587053044,-460.0,0.00021917,3]
[366931300,1750587053054,-226.57356647,0.00021917,3]
[366931301,1750587053063,-417.98597792,0.00021917,3]
[366931302,1750587053076,-42.01402208,0.00021917,3]
[366931303,1750587053085,-387.85961832,0.00021917,3]
[366931304,1750587053095,-460.0,0.00021917,3]
[366931305,1750587053104,-460.0,0.00021917,3]
[366931306,1750587053114,-110.52635945,0.00021917,3]
[366931307,1750587055461,-254.28429019,0.00021917,3]
[366931308,1750587055471,-460.0,0.00021917,3]
[366931309,1750587055481,-460.0,0.00021917,3]
[366931310,1750587055491,-460.0,0.00021917,3]
[366931311,1750587055500,-411.36719858,0.00021917,3]
[366931312,1750587055510,-460.0,0.00021917,3]
[366931313,1750587055519,-461.84873015,0.00021917,3]
[366931314,1750587055528,-461.24720824,0.00021917,3]
[366931315,1750587055538,-255.57039236,0.00021917,3]
[366931316,1750587055547,-460.0,0.00021917,3]
[366931317,1750587055557,-172.14767029,0.00021917,3]
[366931318,1750587055567,-460.0,0.00021917,3]
[366931319,1750587055577,-395.53433639,0.00021917,3]
[366931320,1750587055587,-505.02898709,0.00021917,3]
[366931321,1750587055674,-440.0,0.00021917,3]
[366931322,1750587055685,-460.0,0.00021917,3]
[366931323,1750587055695,-106.59770967,0.00021917,3]
[366931324,1750587069014,530.25440448,0.00016548,20]
[366931325,1750587069034,119.04872219,0.00016548,20]
[366931328,1750587290636,1000.0,0.00025,120]
[366931329,1750587291442,1000.0,0.00025,120]
[366931330,1750587292111,1000.0,0.00025,120]
[366931335,1750587467903,933.88604589,0.00025,120]
[366931336,1750587543501,161.145108,0.00013699,2]
[366931342,1750587675150,177.4,0.00025,120]
[366931349,1750588025309,-278.01014979,0.00019817,2]
[366931350,1750588025332,-386.68414557,0.00020036,2]
[366931351,1750588025355,-269.07753079,0.00020345,2]
[366931352,1750588047124,-306.61215779,0.00020345,2]
[366931353,1750588052085,-154.79358417,0.00020345,2]
[366931354,1750588057007,3689.89887502,0.000222,69]
[366931355,1750588061982,3689.89887501,0.000222,69]
[366931356,1750588067103,3689.89887501,0.00022573,70]
[366931357,1750588070704,135089.99088034,0.00018,2]
[366931359,1750588088586,400.71467078,0.000248,120]
[366931360,1750588107607,1170.01410219,0.00019,2]
[366931361,1750588115631,84822.58996261,0.00017,2]
[366931362,1750588118679,21954.82054918,0.00018,2]
[366931363,1750588121028,29139.01832412,0.00018,2]
[366931365,1750588122421,2733.741829,0.0002,120]
[366931366,1750588125159,154.1711229,0.000168,2]
[366931368,1750588148169,-1000.0,0.000195,2]
[366931369,1750588148189,-184.9509184,0.00019616,2]
[366931370,1750588148210,-413.2297769,0.0002,2]
[366931371,1750588148229,-438.24892811,0.000201,2]
[366931372,1750588148250,-300.0,0.00020345,2]
[366931373,1750588148270,-300.0,0.00020346,2]
[366931374,1750588148290,-84.49288673,0.00020346,2]
[366931375,1750588162144,-215.50711327,0.00020346,2]
[366931376,1750588162166,-1200.0,0.00020346,2]
[366931377,1750588162187,-300.0,0.00020346,2]
[366931378,1750588162210,-500.0,0.00020347,2]
[366931379,1750588162231,-500.0,0.00020347,2]
[366931380,1750588162253,-500.0,0.00020347,2]
[366931381,1750588162275,-500.0,0.00020347,2]
[366931382,1750588162294,-500.0,0.00020347,2]
[366931383,1750588162316,-500.0,0.00020347,2]
[366931384,1750588162340,-500.0,0.00020347,2]
[366931385,1750588162362,-500.0,0.00020347,2]
[366931386,1750588162384,-500.0,0.00020347,2]
[366931387,1750588162405,-7862.58028322,0.00020348,2]
[366931388,1750588165113,-17037.41971678,0.00020348,2]
[366931389,1750588165136,-265.9137825,0.00020446,2]
[366931390,1750588165158,-1000.0,0.00020699,2]
[366931391,1750588165180,-1000.0,0.00020699,2]
[366931392,1750588165200,-160.0,0.0002083,2]
[366931393,1750588165223,-161.145108,0.00020951,2]
[366931394,1750588165244,-373.926,0.00020961,2]
[366931395,1750588165264,-177.973,0.00020961,2]
[366931396,1750588165284,-59514.14286256,0.0002099,2]
[366931397,1750588165304,-386.68414557,0.00021018,2]
[366931398,1750588165403,-860.0,0.00021316,2]
[366931399,1750588165427,-386.68414557,0.00021366,2]
[366931400,1750588165449,-168.0,0.00021413,2]
[366931401,1750588165472,-168.0,0.00021453,2]
[366931402,1750588165493,-168.0,0.00021454,2]
[366931403,1750588165515,-168.0,0.00021476,2]
[366931404,1750588165535,-386.68414557,0.00021537,2]
[366931405,1750588165559,-168.0,0.00021798,2]
[366931406,1750588165580,-251.22,0.000218,10]
[366931407,1750588165601,-350.36,0.000218,10]
[366931408,1750588165622,-160.0,0.00021808,2]
[366931409,1750588165645,-1328.41468582,0.0002181,2]
[366931410,1750588169874,292.16595208,0.000189,2]
[366931417,1750588202929,907.42100008,0.00025,120]
[366931419,1750588227218,229.79473488,0.00020336,2]
[366931430,1750588232665,-768.12663895,0.00021717,2]
[366931432,1750588232675,-7238.70013622,0.0002181,2]
[366931447,1750588237826,386.68414559,0.00021376,2]
[366931476,1750588238733,-1026.29641089,0.0002181,2]
[366931479,1750588238745,-16587.93636334,0.0002181,2]
[366931481,1750588238755,-1003.01966123,0.00021816,2]
[366931482,1750588238765,-168.11580436,0.00021817,2]
[366931485,1750588238774,-3032.4273859,0.00021817,2]
[366931488,1750588238783,-17486.43178124,0.00021817,2]
[366931490,1750588238793,-5073.88879944,0.00021817,2]
[366931503,1750588238909,-1832.59836117,0.00021817,2]
[366931505,1750588238922,-4747.49783594,0.00021817,2]
[366931509,1750588238942,-10272.20437387,0.00021817,2]
[366931511,1750588238952,-168.0,0.00021882,2]
[366931513,1750588238963,-151.0,0.000219,3]
[366931515,1750588238976,-151.0,0.000219,4]
[366931517,1750588238986,-151.0,0.000219,3]
[366931519,1750588239004,-151.0,0.000219,3]
[366931521,1750588239026,-151.0,0.000219,3]
[366931523,1750588239045,-151.0,0.000219,4]
[366931525,1750588239054,-151.0,0.000219,4]
[366931527,1750588239064,-151.0,0.000219,3]
[366931529,1750588239073,-151.0,0.000219,3]
[366931531,1750588239082,-151.0,0.000219,3]
[366931533,1750588239091,-151.0,0.000219,3]
[366931535,1750588239100,-151.0,0.000219,3]
[366931537,1750588239109,-151.0,0.000219,4]
[366931539,1750588239118,-151.0,0.000219,3]
[366931541,1750588239127,-151.0,0.000219,4]
[366931543,1750588239136,-151.0,0.000219,4]
[366931544,1750588239146,-151.0,0.000219,4]
[366931545,1750588239155,-2369.05,0.00021907,3]
[366931546,1750588239165,-1779.5,0.00021907,3]
[366931547,1750588239174,-889.75,0.00021907,3]
[366931548,1750588239183,-444.88,0.00021907,3]
[366931549,1750588239193,-222.44,0.00021907,3]
[366931550,1750588239202,-667.33,0.00021907,3]
[366931551,1750588239212,-333.84,0.00021907,10]
[366931552,1750588239221,-1000.0,0.00021912,2]
[366931553,1750588239231,-754.34874799,0.00021915,2]
[366931554,1750588239240,-463.13413278,0.00021916,2]
[366931555,1750588239249,-160.68566857,0.00021916,2]
[366931556,1750588239261,-339.31433143,0.00021916,2]
[366931557,1750588239270,-452.0133785,0.00021916,2]
[366931558,1750588239279,-500.0,0.00021916,2]
[366931559,1750588239288,-500.0,0.00021916,2]
[366931560,1750588239297,-500.0,0.00021916,2]
[366931561,1750588239306,-500.21300343,0.00021916,2]
[366931562,1750588239315,-495.28795411,0.00021916,2]
[366931563,1750588239324,-343.94376388,0.00021916,2]
[366931564,1750588239331,-1505.21469016,0.00021916,2]
[366931565,1750588239340,-1505.21469016,0.00021916,2]
[366931566,1750588239350,-355.06286777,0.00021916,2]
[366931567,1750588239359,-160.0,0.00021916,2]
[366931568,1750588239369,-36491.89686747,0.00021917,2]
[366931569,1750588239378,-51213.37282831,0.00021917,2]
[366931570,1750588239387,-460.0,0.00021917,3]
[366931571,1750588239397,-445.42365562,0.00021917,3]
[366931572,1750588239406,-460.0,0.00021917,3]
[366931573,1750588239415,-396.97518211,0.00021917,3]
[366931574,1750588239424,-435.23547545,0.00021917,3]
[366931575,1750588239433,-460.0,0.00021917,3]
[366931576,1750588239442,-460.0,0.00021917,3]
[366931577,1750588239453,-448.16909675,0.00021917,3]
[366931578,1750588239464,-237.13444223,0.00021917,3]
[366931579,1750588239473,-346.67269434,0.00021917,3]
[366931580,1750588239482,-440.0,0.00021917,3]
[366931581,1750588239492,-460.0,0.00021917,3]
[366931583,1750588239501,-430.0,0.00021917,3]
[366931585,1750588239511,-460.0,0.00021917,3]
[366931587,1750588239519,-460.0,0.00021917,3]
[366931589,1750588239529,-460.0,0.00021917,3]
[366931591,1750588239538,-460.0,0.00021917,3]
[366931593,1750588239547,-460.0,0.00021917,3]
[366931595,1750588239556,-460.0,0.00021917,3]
[366931597,1750588239566,-460.0,0.00021917,3]
[366931599,1750588239575,-547.75984438,0.00021917,3]
[366931601,1750588239585,-432.17946286,0.00021917,3]
[366931603,1750588239595,-457.79732561,0.00021917,3]
[366931605,1750588239604,-447.12682122,0.00021917,3]
[366931607,1750588239614,-442.1263739,0.00021917,3]
[366931609,1750588239623,-295.354121,0.00021917,3]
[366931611,1750588239632,-460.0,0.00021917,3]
[366931613,1750588239641,-431.21507499,0.00021917,3]
[366931615,1750588239651,-460.0,0.00021917,3]
[366931617,1750588239660,-460.0,0.00021917,3]
[366931619,1750588239670,-460.0,0.00021917,3]
[366931621,1750588239679,-460.0,0.00021917,3]
[366931622,1750588239689,-460.0,0.00021917,3]
[366931624,1750588239698,-177.85225218,0.00021917,3]
[366931625,1750588239707,-460.0,0.00021917,3]
[366931627,1750588239717,-430.0,0.00021917,3]
[366931629,1750588239727,-460.0,0.00021917,3]
[366931631,1750588239736,-460.0,0.00021917,3]
[366931633,1750588239746,-460.0,0.00021917,3]
[366931635,1750588239755,-421.79503916,0.00021917,3]
[366931637,1750588239765,-433.4039211,0.00021917,3]
[366931639,1750588239775,-460.0,0.00021917,3]
[366931641,1750588239784,-224.34516668,0.00021917,3]
[366931643,1750588239794,-460.0,0.00021917,3]
[366931645,1750588239804,-460.0,0.00021917,3]
[366931647,1750588239814,-432.28070817,0.00021917,3]
[366931649,1750588239824,-460.0,0.00021917,3]
[366931651,1750588239833,-433.39657017,0.00021917,3]
[366931653,1750588239843,-460.0,0.00021917,3]
[366931655,1750588239852,-460.0,0.00021917,3]
[366931657,1750588239861,-427.82808498,0.00021917,3]
[366931659,1750588239871,-460.0,0.00021917,3]
[366931661,1750588239880,-460.0,0.00021917,3]
[366931663,1750588239889,-460.0,0.00021917,3]
[366931665,1750588239898,-460.0,0.00021917,3]
[366931667,1750588239908,-224.09666935,0.00021917,3]
[366931669,1750588239917,-267.36086693,0.00021917,3]
[366931671,1750588239927,-460.0,0.00021917,3]
[366931673,1750588239936,-329.82150079,0.00021917,3]
[366931675,1750588239945,-415.63177093,0.00021917,3]
[366931677,1750588239955,-460.0,0.00021917,3]
[366931679,1750588239966,-509.33759398,0.00021917,3]
[366931681,1750588239975,-460.0,0.00021917,3]
[366931683,1750588239984,-460.0,0.00021917,3]
[366931692,1750588240067,-460.0,0.00021917,3]
[366931694,1750588240078,-192.2738361,0.00021917,3]
[366931696,1750588240087,-460.0,0.00021917,3]
[366931698,1750588240096,-460.0,0.00021917,3]
[366931700,1750588240106,-439.39149242,0.00021917,3]
[366931702,1750588240115,-421.25909966,0.00021917,3]
[366931704,1750588240124,-460.0,0.00021917,3]
[366931706,1750588240134,-460.0,0.00021917,3]
[366931707,1750588240144,-460.0,0.00021917,3]
[366931709,1750588240154,-233.89854203,0.00021917,3]
[366931710,1750588240164,-460.0,0.00021917,3]
[366931711,1750588240173,-460.0,0.00021917,3]
[366931712,1750588240183,-460.0,0.00021917,3]
[366931713,1750588240192,-460.0,0.00021917,3]
[366931714,1750588240202,-460.0,0.00021917,3]
[366931715,1750588240211,-460.0,0.00021917,3]
[366931716,1750588240221,-460.0,0.00021917,3]
[366931717,1750588240230,-460.0,0.00021917,3]
[366931718,1750588240239,-276.80991778,0.00021917,3]
[366931719,1750588240249,-509.65580776,0.00021917,3]
[366931720,1750588240258,-460.0,0.00021917,3]
[366931721,1750588240267,-460.0,0.00021917,3]
[366931722,1750588240276,-424.29468684,0.00021917,3]
[366931723,1750588240285,-430.64298412,0.00021917,3]
[366931724,1750588240294,-460.0,0.00021917,3]
[366931725,1750588240303,-375.19895183,0.00021917,3]
[366931726,1750588240315,-151.0,0.00021917,2]
[366931727,1750588240324,-151.0,0.00021917,2]
[366931728,1750588240334,-152.037887,0.00021917,2]
[366931729,1750588240355,-151.0,0.00021917,2]
[366931730,1750588240367,-468.38474708,0.00021917,3]
[366931731,1750588240376,-460.0,0.00021917,3]
[366931732,1750588240386,-471.89309059,0.00021917,3]
[366931733,1750588240396,-460.0,0.00021917,3]
[366931734,1750588240406,-460.0,0.00021917,3]
[366931735,1750588240417,-460.0,0.00021917,3]
[366931736,1750588240427,-460.0,0.00021917,3]
[366931737,1750588240437,-460.0,0.00021917,3]
[366931738,1750588240446,-460.0,0.00021917,3]
[366931739,1750588240456,-363.30590571,0.00021917,3]
[366931740,1750588240467,-438.20652803,0.00021917,3]
[366931741,1750588240483,-460.0,0.00021917,3]
[366931742,1750588240493,-403.60115946,0.00021917,3]
[366931743,1750588240503,-447.26573686,0.00021917,3]
[366931744,1750588240513,-443.23468534,0.00021917,3]
[366931745,1750588240523,-434.76999682,0.00021917,3]
[366931746,1750588240533,-460.0,0.00021917,3]
[366931747,1750588240543,-380.93928795,0.00021917,3]
[366931748,1750588240552,-431.54275924,0.00021917,3]
[366931749,1750588240562,-460.0,0.00021917,3]
[366931750,1750588240572,-460.0,0.00021917,3]
[366931751,1750588240582,-460.0,0.00021917,3]
[366931752,1750588240595,-460.0,0.00021917,3]
[366931753,1750588240605,-460.0,0.00021917,3]
[366931754,1750588240615,-460.0,0.00021917,3]
[366931755,1750588240624,-460.0,0.00021917,3]
[366931756,1750588240634,-460.0,0.00021917,3]
[366931757,1750588240643,-492.14427431,0.00021917,3]
[366931758,1750588240654,-460.0,0.00021917,3]
[366931759,1750588240664,-460.0,0.00021917,3]
[366931760,1750588240673,-460.0,0.00021917,3]
[366931761,1750588240684,-186.33656884,0.00021917,3]
[366931762,1750588240694,-152.544402,0.00021917,2]
[366931763,1750588240704,-460.0,0.00021917,3]
[366931764,1750588240715,-460.0,0.00021917,3]
[366931765,1750588240726,-442.75701972,0.00021917,3]
[366931766,1750588240735,-460.0,0.00021917,3]
[366931767,1750588240745,-460.0,0.00021917,3]
[366931768,1750588240754,-218.36469932,0.00021917,3]
[366931769,1750588240764,-460.0,0.00021917,3]
[366931770,1750588240774,-460.0,0.00021917,3]
[366931771,1750588240783,-460.0,0.00021917,3]
[366931772,1750588240793,-310.47733634,0.00021917,3]
[366931773,1750588240804,-430.0,0.00021917,3]
[366931774,1750588240813,-460.0,0.00021917,3]
[366931775,1750588240823,-460.0,0.00021917,3]
[366931776,1750588240833,-460.0,0.00021917,3]
[366931777,1750588240842,-460.0,0.00021917,3]
[366931778,1750588240852,-320.30170401,0.00021917,3]
[366931779,1750588240861,-460.0,0.00021917,3]
[366931780,1750588240871,-596.96882035,0.00021917,3]
[366931781,1750588240881,-439.78884639,0.00021917,3]
[366931782,1750588240891,-460.0,0.00021917,3]
[366931783,1750588240901,-445.30442696,0.00021917,3]
[366931784,1750588240911,-590.7045436,0.00021917,3]
[366931785,1750588240920,-151.0,0.00021917,2]
[366931786,1750588240931,-151.0,0.00021917,2]
[366931787,1750588240941,-460.0,0.00021917,3]
[366931788,1750588240951,-460.0,0.00021917,3]
[366931789,1750588240963,-460.0,0.00021917,3]
[366931790,1750588240973,-460.0,0.00021917,3]
[366931791,1750588240983,-460.0,0.00021917,3]
[366931792,1750588240993,-317.10666929,0.00021917,3]
[366931793,1750588241005,-460.0,0.00021917,3]
[366931794,1750588241015,-410.7459568,0.00021917,3]
[366931795,1750588241025,-440.0,0.00021917,3]
[366931796,1750588241035,-433.0762285,0.00021917,3]
[366931797,1750588241045,-445.02941516,0.00021917,3]
[366931798,1750588241055,-151.0,0.00021917,2]
[366931799,1750588241064,-151.0,0.00021917,2]
[366931800,1750588241076,-462.19014039,0.00021917,3]
[366931801,1750588241087,-441.69494668,0.00021917,3]
[366931802,1750588241097,-434.40297189,0.00021917,3]
[366931804,1750588241106,-440.0,0.00021917,3]
[366931806,1750588241116,-460.0,0.00021917,3]
[366931808,1750588241126,-397.41721495,0.00021917,3]
[366931810,1750588241135,-460.0,0.00021917,3]
[366931811,1750588241144,-342.17586911,0.00021917,3]
[366931813,1750588241154,-460.0,0.00021917,3]
[366931814,1750588241163,-460.0,0.00021917,3]
[366931815,1750588241173,-460.0,0.00021917,3]
[366931816,1750588241182,-160.06697048,0.00021917,3]
[366931817,1750588241192,-460.0,0.00021917,3]
[366931818,1750588241202,-460.0,0.00021917,3]
[366931820,1750588241212,-460.0,0.00021917,3]
[366931821,1750588241221,-460.0,0.00021917,3]
[366931822,1750588241231,-210.07136035,0.00021917,3]
[366931823,1750588241240,-460.0,0.00021917,3]
[366931824,1750588241250,-440.0,0.00021917,3]
[366931825,1750588241261,-430.0,0.00021917,3]
[366931826,1750588241272,-500.0,0.00021917,3]
[366931827,1750588241359,-500.0,0.00021917,3]
[366931828,1750588241369,-500.0,0.00021917,3]
[366931829,1750588241378,-324.04769727,0.00021917,3]
[366931830,1750588241388,-444.58987274,0.00021917,3]
[366931831,1750588241397,-360.38266317,0.00021917,3]
[366931832,1750588241406,-492.63133121,0.00021917,3]
[366931833,1750588241416,-460.0,0.00021917,3]
[366931834,1750588241425,-460.0,0.00021917,3]
[366931835,1750588241435,-440.0,0.00021917,3]
[366931836,1750588241445,-460.0,0.00021917,3]
[366931837,1750588241455,-460.0,0.00021917,3]
[366931838,1750588241465,-460.0,0.00021917,3]
[366931839,1750588241474,-460.0,0.00021917,3]
[366931840,1750588241484,-460.0,0.00021917,3]
[366931841,1750588241493,-460.0,0.00021917,3]
[366931842,1750588241503,-524.34272003,0.00021917,3]
[366931843,1750588241512,-377.17675612,0.00021917,3]
[366931844,1750588241522,-188.91410348,0.00021917,3]
[366931845,1750588241531,-460.0,0.00021917,3]
[366931846,1750588241540,-413.78328756,0.00021917,3]
[366931847,1750588241550,-261.617432,0.00021917,2]
[366931848,1750588241559,-261.617432,0.00021917,2]
[366931849,1750588241569,-436.92144752,0.00021917,3]
[366931850,1750588241578,-460.0,0.00021917,3]
[366931851,1750588241588,-478.20330818,0.00021917,3]
[366931852,1750588241597,-460.0,0.00021917,3]
[366931853,1750588241606,-460.0,0.00021917,3]
[366931854,1750588241615,-460.0,0.00021917,3]
[366931855,1750588241625,-460.0,0.00021917,3]
[366931856,1750588241635,-460.0,0.00021917,3]